fUSD/lending_fUSD_20240720
["ID","MTS","AMOUNT","RATE_DAILY","PERIOD"]
[332701047,1721454676081,-500.0,0.00033698,14]
[332701048,1721454676090,-678.4,0.00033698,14]
[332701049,1721454676101,-500.0,0.00033698,14]
[332701050,1721454676111,-540.72,0.00033698,14]
[332701051,1721454676121,-500.0,0.00033698,14]
[332701052,1721454676130,-500.0,0.00033698,14]
[332701053,1721454676140,-626.62,0.00033698,14]
[332701054,1721454676150,-843.22,0.00033698,14]
[332701055,1721454676160,-500.0,0.00033698,14]
[332701056,1721454676169,-500.0,0.00033698,14]
[332701057,1721454676179,-500.0,0.00033698,14]
[332701058,1721454676189,-428.17809097,0.00033698,14]
[332701059,1721454676199,-590.67,0.00033698,14]
[332701060,1721454676210,-581.23,0.00033698,14]
[332701061,1721454676219,-514.12,0.00033698,14]
[332701062,1721454676229,-500.0,0.00033698,14]
[332701063,1721454676238,-500.0,0.00033698,14]
[332701064,1721454676248,-637.85,0.00033698,14]
[332701065,1721454676258,-767.04,0.00033698,14]
[332701066,1721454676269,-500.0,0.00033698,14]
[332701067,1721454676279,-500.0,0.00033698,14]
[332701068,1721454676289,-629.13606255,0.00033698,14]
[332701069,1721454676300,-500.0,0.00033698,14]
[332701070,1721454676310,-362.51003452,0.00033698,14]
[332701071,1721454676322,-500.0,0.00033698,14]
[332701072,1721454676332,-500.0,0.00033698,14]
[332701073,1721454676342,-500.0,0.00033698,14]
[332701074,1721454676353,-240.10695094,0.00033698,14]
[332701075,1721454676362,-500.0,0.00033698,14]
[332701076,1721454676375,-607.5,0.00033698,14]
[332701077,1721454676385,-694.38,0.00033698,14]
[332701078,1721454676395,-523.92531017,0.00033698,14]
[332701079,1721454676404,-500.0,0.00033698,14]
[332701080,1721454676413,-500.0,0.00033698,14]
[332701081,1721454676423,-500.0,0.00033698,14]
[332701082,1721454676432,-500.0,0.00033698,14]
[332701083,1721454676443,-500.0,0.00033698,14]
[332701084,1721454676453,-500.0,0.00033698,14]
[332701085,1721454676462,-500.0,0.00033698,14]
[332701086,1721454676472,-500.0,0.00033698,14]
[332701087,1721454676482,-500.0,0.00033698,14]
[332701088,1721454676492,-500.0,0.00033698,14]
[332701089,1721454676502,-500.0,0.00033698,14]
[332701090,1721454676512,-474.87751636,0.00033698,14]
[332701091,1721454676523,-500.0,0.00033698,14]
[332701092,1721454676532,-500.0,0.00033698,14]
[332701093,1721454676542,-530.52,0.00033698,14]
[332701094,1721454676552,-500.0,0.00033698,14]
[332701095,1721454676562,-500.0,0.00033698,14]
[332701096,1721454676572,-244.65685623,0.00033698,14]
[332701097,1721454676583,-217.7653719,0.00033698,14]
[332701098,1721454676594,-503.81,0.00033698,14]
[332701099,1721454676607,-500.0,0.00033698,14]
[332701100,1721454676617,-536.19,0.00033698,14]
[332701101,1721454676626,-500.0,0.00033698,14]
[332701102,1721454676636,-500.0,0.00033698,14]
[332701103,1721454676645,-500.0,0.00033698,14]
[332701104,1721454676655,-500.0,0.00033698,14]
[332701105,1721454676665,-500.0,0.00033698,14]
[332701106,1721454676675,-500.0,0.00033698,14]
[332701107,1721454676684,-500.0,0.00033698,14]
[332701108,1721454676694,-500.0,0.00033698,14]
[332701109,1721454676704,-500.0,0.00033698,14]
[332701110,1721454676713,-500.0,0.00033698,14]
[332701111,1721454676723,-500.0,0.00033698,14]
[332701112,1721454676733,-602.73,0.00033698,14]
[332701113,1721454676743,-500.0,0.00033698,14]
[332701114,1721454676752,-500.0,0.00033698,14]
[332701115,1721454676762,-694.11,0.00033698,14]
[332701116,1721454676772,-976.13,0.00033698,14]
[332701117,1721454676782,-259.93014871,0.00033698,14]
[332701118,1721454676793,-586.56,0.00033698,14]
[332701119,1721454676803,-500.0,0.00033698,14]
[332701120,1721454676813,-500.0,0.00033698,14]
[332701121,1721454677088,-956.44,0.00033698,14]
[332701122,1721454677098,-500.0,0.00033698,14]
[332701123,1721454677108,-500.0,0.00033698,14]
[332701124,1721454677118,-546.24,0.00033698,14]
[332701125,1721454677128,-500.0,0.00033698,14]
[332701126,1721454677138,-597.63,0.00033698,14]
[332701127,1721454677148,-433.46073138,0.00033698,14]
[332701128,1721454677158,-500.0,0.00033698,14]
[332701129,1721454677169,-500.0,0.00033698,14]
[332701130,1721454677180,-500.0,0.00033698,14]
[332701131,1721454677190,-516.1242813,0.00033698,14]
[332701132,1721454677199,-578.97,0.00033698,14]
[332701133,1721454677208,-597.40056569,0.00033698,14]
[332701134,1721454677218,-500.0,0.00033698,14]
[332701135,1721454677227,-500.0,0.00033698,14]
[332701136,1721454677236,-500.0,0.00033698,14]
[332701137,1721454677246,-501.2319181,0.00033698,14]
[332701138,1721454677255,-500.0,0.00033698,14]
[332701139,1721454677265,-500.0,0.00033698,14]
[332701140,1721454677275,-500.0,0.00033698,14]
[332701141,1721454677285,-500.0,0.00033698,14]
[332701142,1721454677295,-500.0,0.00033698,14]
[332701143,1721454677304,-353.12558104,0.00033698,14]
[332701144,1721454677318,-500.0,0.00033698,14]
[332701145,1721454677327,-1139.65,0.00033698,14]
[332701146,1721454677336,-500.0,0.00033698,14]
[332701147,1721454677346,-594.81,0.00033698,14]
[332701148,1721454677356,-1160.02,0.00033698,14]
[332701149,1721454677366,-533.4,0.00033698,14]
[332701150,1721454677375,-408.61135007,0.00033698,14]
[332701151,1721454677385,-500.0,0.00033698,14]
[332701152,1721454677395,-1635.03,0.00033698,14]
[332701153,1721454677404,-500.0,0.00033698,14]
[332701154,1721454677414,-500.0,0.00033698,14]
[332701155,1721454677423,-874.14,0.00033698,14]
[332701156,1721454677433,-500.0,0.00033698,14]
[332701157,1721454677444,-901.37,0.00033698,14]
[332701158,1721454677455,-500.0,0.00033698,14]
[332701159,1721454677466,-829.22,0.00033698,14]
[332701160,1721454677476,-500.0,0.00033698,14]
[332701161,1721454677485,-500.0,0.00033698,14]
[332701162,1721454677496,-1308.18,0.00033698,14]
[332701163,1721454677507,-843.1,0.00033698,14]
[332701164,1721454677516,-635.71,0.00033698,14]
[332701165,1721454677527,-500.0,0.00033698,14]
[332701166,1721454677537,-876.85,0.00033698,14]
[332701167,1721454677550,-683.53,0.00033698,14]
[332701168,1721454677560,-935.95,0.00033698,14]
[332701169,1721454677570,-500.0,0.00033698,14]
[332701170,1721454677580,-500.0,0.00033698,14]
[332701171,1721454677590,-500.0,0.00033698,14]
[332701172,1721454677601,-745.54,0.00033698,14]
[332701173,1721454677610,-636.69,0.00033698,14]
[332701174,1721454677620,-500.0,0.00033698,14]
[332701175,1721454677629,-500.0,0.00033698,14]
[332701176,1721454677638,-500.0,0.00033698,14]
[332701177,1721454677648,-898.66,0.00033698,14]
[332701178,1721454677658,-500.0,0.00033698,14]
[332701179,1721454677667,-769.28,0.00033698,14]
[332701180,1721454677677,-1079.35,0.00033698,14]
[332701181,1721454677687,-710.01,0.00033698,14]
[332701182,1721454677696,-500.0,0.00033698,14]
[332701183,1721454677706,-500.0,0.00033698,14]
[332701184,1721454677716,-1222.45,0.00033698,14]
[332701185,1721454677725,-1172.59,0.00033698,14]
[332701186,1721454677736,-579.49,0.00033698,14]
[332701187,1721454677746,-500.0,0.00033698,14]
[332701188,1721454677756,-500.0,0.00033698,14]
[332701189,1721454677765,-1056.79,0.00033698,14]
[332701190,1721454677775,-514.14889394,0.00033698,14]
[332701191,1721454677785,-807.94,0.00033698,14]
[332701192,1721454677794,-1358.25,0.00033698,14]
[332701193,1721454677804,-500.0,0.00033698,14]
[332701194,1721454677813,-1130.8,0.00033698,14]
[332701195,1721454677823,-870.92,0.00033698,14]
[332701196,1721454677832,-500.0,0.00033698,14]
[332701197,1721454677841,-500.0,0.00033698,14]
[332701198,1721454677851,-500.0,0.00033698,14]
[332701199,1721454677860,-500.0,0.00033698,14]
[332701200,1721454677870,-500.0,0.00033698,14]
[332701201,1721454677879,-500.0,0.00033698,14]
[332701202,1721454677888,-500.0,0.00033698,14]
[332701203,1721454677898,-500.0,0.00033698,14]
[332701204,1721454677907,-969.05,0.00033698,14]
[332701205,1721454677917,-611.53347034,0.00033698,14]
[332701206,1721454677926,-500.0,0.00033698,14]
[332701207,1721454677936,-761.91,0.00033698,14]
[332701208,1721454677946,-642.69,0.00033698,14]
[332701209,1721454677955,-893.09,0.00033698,14]
[332701210,1721454677966,-500.0,0.00033698,14]
[332701211,1721454677975,-597.63,0.00033698,14]
[332701212,1721454677985,-500.0,0.00033698,14]
[332701213,1721454677994,-598.13,0.00033698,14]
[332701214,1721454678004,-500.0,0.00033698,14]
[332701215,1721454678013,-972.69,0.00033698,14]
[332701216,1721454678023,-500.0,0.00033698,14]
[332701217,1721454678032,-1697.94,0.00033698,14]
[332701218,1721454678045,-500.0,0.00033698,14]
[332701219,1721454678054,-500.0,0.00033698,14]
[332701220,1721454678064,-500.0,0.00033698,14]
[332701221,1721454678073,-500.0,0.00033698,14]
[332701222,1721454678083,-500.0,0.00033698,14]
[332701223,1721454678094,-500.0,0.00033698,14]
[332701224,1721454678104,-500.0,0.00033698,14]
[332701225,1721454678114,-1191.04,0.00033698,14]
[332701226,1721454678125,-500.0,0.00033698,14]
[332701227,1721454678134,-502.32,0.00033698,14]
[332701228,1721454678144,-500.0,0.00033698,14]
[332701229,1721454678154,-500.0,0.00033698,14]
[332701230,1721454678165,-500.0,0.00033698,14]
[332701231,1721454678175,-627.33,0.00033698,14]
[332701232,1721454678184,-500.0,0.00033698,14]
[332701233,1721454678193,-500.0,0.00033698,14]
[332701234,1721454678202,-151.0,0.00033698,7]
[332701235,1721454678212,-500.0,0.00033698,14]
[332701236,1721454678221,-1434.76,0.00033698,14]
[332701237,1721454678231,-500.0,0.00033698,14]
[332701238,1721454678240,-685.1,0.00033698,14]
[332701239,1721454678250,-194.04070415,0.00033698,14]
[332701240,1721454678260,-500.0,0.00033698,14]
[332701241,1721454678270,-500.0,0.00033698,14]
[332701242,1721454678280,-689.63,0.00033698,14]
[332701243,1721454678289,-518.35,0.00033698,14]
[332701244,1721454678299,-690.62,0.00033698,14]
[332701245,1721454678308,-500.0,0.00033698,14]
[332701246,1721454678322,-1590.11,0.00033698,14]
[332701247,1721454678332,-763.13,0.00033698,14]
[332701248,1721454678341,-500.0,0.00033698,14]
[332701249,1721454678351,-559.09,0.00033698,14]
[332701250,1721454678363,-662.09,0.00033698,14]
[332701251,1721454678372,-500.0,0.00033698,14]
[332701252,1721454678382,-844.23,0.00033698,14]
[332701253,1721454678392,-531.67,0.00033698,14]
[332701254,1721454678402,-914.64,0.00033698,14]
[332701255,1721454678411,-500.0,0.00033698,14]
[332701256,1721454678420,-500.0,0.00033698,14]
[332701257,1721454678429,-647.26,0.00033698,14]
[332701258,1721454678439,-1027.47,0.00033698,14]
[332701259,1721454678448,-600.45,0.00033698,14]
[332701260,1721454678458,-500.0,0.00033698,14]
[332701261,1721454678468,-500.0,0.00033698,14]
[332701262,1721454678478,-613.0,0.00033698,14]
[332701263,1721454678488,-656.88,0.00033698,14]
[332701264,1721454678497,-633.44,0.00033698,14]
[332701265,1721454678506,-500.0,0.00033698,14]
[332701266,1721454678516,-1054.78875161,0.00033698,14]
[332701267,1721454678526,-1003.56,0.00033698,14]
[332701268,1721454678536,-521.29,0.00033698,14]
[332701269,1721454678546,-1014.61,0.00033698,14]
[332701270,1721454678556,-500.0,0.00033698,14]
[332701271,1721454678566,-749.61,0.00033698,14]
[332701272,1721454678576,-500.0,0.00033698,14]
[332701273,1721454678586,-1820.15,0.00033698,14]
[332701274,1721454678595,-500.0,0.00033698,14]
[332701275,1721454678605,-1418.41,0.00033698,14]
[332701276,1721454678615,-521.44,0.00033698,14]
[332701277,1721454678624,-1558.75,0.00033698,14]
[332701278,1721454678632,-682.47,0.00033698,14]
[332701279,1721454678641,-500.0,0.00033698,14]
[332701280,1721454678650,-500.0,0.00033698,14]
[332701281,1721454678660,-500.0,0.00033698,14]
[332701282,1721454678669,-1023.25,0.00033698,14]
[332701283,1721454678678,-814.54,0.00033698,14]
[332701284,1721454678688,-500.0,0.00033698,14]
[332701285,1721454678698,-1286.8,0.00033698,14]
[332701286,1721454678707,-500.0,0.00033698,14]
[332701287,1721454678716,-817.73,0.00033698,2]
[332701288,1721454678726,-1224.39,0.00033698,14]
[332701289,1721454678735,-500.0,0.00033698,14]
[332701290,1721454678745,-500.0,0.00033698,14]
[332701291,1721454678755,-625.67102586,0.00033698,14]
[332701292,1721454678765,-796.27,0.00033698,14]
[332701293,1721454678775,-946.86,0.00033698,14]
[332701294,1721454678784,-569.28,0.00033698,14]
[332701295,1721454678795,-901.79,0.00033698,14]
[332701296,1721454678805,-500.0,0.00033698,14]
[332701297,1721454678815,-500.0,0.00033698,14]
[332701298,1721454678824,-500.0,0.00033698,14]
[332701299,1721454678834,-500.0,0.00033698,14]
[332701300,1721454678844,-940.39,0.00033698,14]
[332701301,1721454678854,-749.26,0.00033698,14]
[332701302,1721454678865,-674.35,0.00033698,14]
[332701303,1721454678874,-831.76,0.00033698,14]
[332701304,1721454678884,-749.98,0.00033698,14]
[332701305,1721454678894,-1280.8,0.00033698,14]
[332701306,1721454678905,-500.0,0.00033698,14]
[332701307,1721454678915,-1086.68,0.00033698,14]
[332701308,1721454678924,-1680.75,0.00033698,14]
[332701309,1721454678934,-500.0,0.00033698,14]
[332701310,1721454678943,-500.0,0.00033698,14]
[332701311,1721454678953,-414.88204424,0.00033698,14]
[332701312,1721454678963,-773.69,0.00033698,14]
[332701313,1721454678973,-990.69,0.00033698,14]
[332701314,1721454678983,-525.83451066,0.00033698,14]
[332701315,1721454678993,-598.66,0.00033698,14]
[332701316,1721454679003,-625.76,0.00033698,14]
[332701317,1721454679013,-500.0,0.00033698,14]
[332701318,1721454679023,-964.11,0.00033698,14]
[332701319,1721454679036,-500.0,0.00033698,14]
[332701320,1721454679046,-798.13,0.00033698,14]
[332701321,1721454679055,-500.0,0.00033698,14]
[332701322,1721454679065,-679.12,0.00033698,14]
[332701323,1721454679075,-500.0,0.00033698,14]
[332701324,1721454679085,-1219.46,0.00033698,14]
[332701325,1721454679095,-500.0,0.00033698,14]
[332701326,1721454679106,-500.0,0.00033698,14]
[332701327,1721454679115,-500.0,0.00033698,14]
[332701328,1721454679125,-968.81,0.00033698,14]
[332701329,1721454679135,-500.0,0.00033698,14]
[332701330,1721454679145,-1098.81,0.00033698,14]
[332701331,1721454679155,-1573.39,0.00033698,14]
[332701332,1721454679165,-500.0,0.00033698,14]
[332701333,1721454679175,-736.88,0.00033698,14]
[332701334,1721454679184,-503.73,0.00033698,14]
[332701335,1721454679194,-500.0,0.00033698,14]
[332701336,1721454679204,-625.9,0.00033698,14]
[332701337,1721454679214,-955.41,0.00033698,14]
[332701338,1721454679223,-998.25,0.00033698,14]
[332701339,1721454679233,-557.41,0.00033698,14]
[332701340,1721454679242,-630.52,0.00033698,14]
[332701341,1721454679252,-500.0,0.00033698,14]
[332701342,1721454679262,-500.0,0.00033698,14]
[332701343,1721454679272,-1514.94,0.00033698,14]
[332701344,1721454679281,-765.78,0.00033698,14]
[332701345,1721454679291,-1959.07,0.00033698,14]
[332701346,1721454679300,-893.73,0.00033698,14]
[332701347,1721454679311,-1268.47,0.00033698,14]
[332701348,1721454679321,-731.02,0.00033698,14]
[332701349,1721454679331,-628.62,0.00033698,14]
[332701350,1721454679341,-707.75,0.00033698,14]
[332701351,1721454679351,-1899.18,0.00033698,14]
[332701352,1721454679361,-500.0,0.00033698,14]
[332701353,1721454679370,-749.43,0.00033698,14]
[332701354,1721454679379,-500.0,0.00033698,14]
[332701355,1721454679387,-1268.18,0.00033698,14]
[332701356,1721454679396,-500.0,0.00033698,14]
[332701357,1721454679405,-712.94,0.00033698,14]
[332701358,1721454679415,-858.57,0.00033698,14]
[332701359,1721454679427,-500.0,0.00033698,14]
[332701360,1721454679437,-1539.07,0.00033698,14]
[332701361,1721454679447,-792.24,0.00033698,14]
[332701362,1721454679456,-500.0,0.00033698,14]
[332701363,1721454679466,-379.0509506,0.00033698,14]
[332701364,1721454679475,-500.0,0.00033698,14]
[332701365,1721454679485,-907.05,0.00033698,14]
[332701366,1721454679495,-500.0,0.00033698,14]
[332701367,1721454679505,-841.04,0.00033698,14]
[332701368,1721454679515,-500.0,0.00033698,14]
[332701369,1721454679524,-500.0,0.00033698,14]
[332701370,1721454679534,-553.8,0.00033698,14]
[332701371,1721454679544,-500.0,0.00033698,14]
[332701372,1721454679554,-809.53,0.00033698,14]
[332701373,1721454679564,-500.0,0.00033698,14]
[332701374,1721454679574,-500.0,0.00033698,14]
[332701375,1721454679584,-975.87,0.00033698,14]
[332701376,1721454679594,-637.92,0.00033698,14]
[332701377,1721454679605,-500.0,0.00033698,14]
[332701378,1721454679615,-568.56,0.00033698,14]
[332701379,1721454679627,-500.0,0.00033698,14]
[332701380,1721454679637,-517.31408088,0.00033698,14]
[332701381,1721454679647,-701.51,0.00033698,14]
[332701382,1721454679657,-616.55,0.00033698,14]
[332701383,1721454679666,-500.0,0.00033698,14]
[332701384,1721454679676,-500.0,0.00033698,14]
[332701385,1721454679685,-500.0,0.00033698,14]
[332701386,1721454679695,-553.55,0.00033698,14]
[332701387,1721454679705,-500.0,0.00033698,14]
[332701388,1721454679715,-500.0,0.00033698,14]
[332701389,1721454679725,-678.89,0.00033698,14]
[332701390,1721454679734,-500.0,0.00033698,14]
[332701391,1721454679744,-519.86,0.00033698,14]
[332701392,1721454679754,-500.0,0.00033698,14]
[332701393,1721454679763,-1304.01,0.00033698,14]
[332701394,1721454679773,-860.37,0.00033698,14]
[332701395,1721454679782,-241.811483,0.00033698,7]
[332701396,1721454679792,-547.43117012,0.00033698,14]
[332701397,1721454679802,-344.15,0.00033698,14]
[332701398,1721454679811,-500.0,0.00033698,14]
[332701399,1721454679821,-585.34,0.00033698,14]
[332701400,1721454679830,-500.0,0.00033698,14]
[332701401,1721454679841,-500.0,0.00033698,14]
[332701402,1721454679854,-500.0,0.00033698,14]
[332701403,1721454679863,-241.811483,0.00033698,7]
[332701404,1721454679873,-815.33,0.00033698,14]
[332701405,1721454679882,-500.0,0.00033698,14]
[332701406,1721454679892,-1441.53,0.00033698,14]
[332701407,1721454679902,-500.0,0.00033698,14]
[332701408,1721454679914,-400.92,0.00033698,14]
[332701409,1721454679928,-698.02,0.00033698,14]
[332701410,1721454679943,-500.0,0.00033698,14]
[332701411,1721454679957,-500.0,0.00033698,14]
[332701412,1721454679968,-500.0,0.00033698,14]
[332701413,1721454679982,-1388.48,0.00033698,14]
[332701414,1721454679996,-500.0,0.00033698,14]
[332701415,1721454680009,-1150.04,0.00033698,14]
[332701416,1721454680023,-500.0,0.00033698,14]
[332701417,1721454680037,-500.0,0.00033698,14]
[332701418,1721454680051,-500.0,0.00033698,14]
[332701419,1721454680065,-1233.13,0.00033698,7]
[332701420,1721454680078,-500.0,0.00033698,14]
[332701421,1721454680090,-500.0,0.00033698,14]
[332701422,1721454680104,-916.05,0.00033698,14]
[332701423,1721454680118,-500.0,0.00033698,14]
[332701424,1721454680131,-755.96,0.00033698,14]
[332701425,1721454680142,-500.0,0.00033698,14]
[332701426,1721454680155,-879.07,0.00033698,14]
[332701427,1721454680167,-329.52275427,0.00033698,14]
[332701428,1721454680180,-802.19,0.00033698,14]
[332701429,1721454680194,-1258.1,0.00033698,14]
[332701430,1721454680208,-721.76,0.00033698,14]
[332701431,1721454680222,-500.0,0.00033698,14]
[332701432,1721454680236,-500.0,0.00033698,14]
[332701433,1721454680250,-500.0,0.00033698,14]
[332701434,1721454680262,-500.0,0.00033698,14]
[332701435,1721454680273,-575.57,0.00033698,14]
[332701436,1721454680285,-1507.75,0.00033698,14]
[332701437,1721454680298,-500.0,0.00033698,14]
[332701438,1721454680313,-945.44,0.00033698,14]
[332701439,1721454680327,-500.0,0.00033698,14]
[332701440,1721454680340,-515.25819986,0.00033698,2]
[332701441,1721454680353,-500.0,0.00033698,14]
[332701442,1721454680368,-500.0,0.00033698,14]
[332701443,1721454680380,-500.0,0.00033698,14]
[332701444,1721454680392,-956.9,0.00033698,14]
[332701445,1721454680403,-500.0,0.00033698,14]
[332701446,1721454680417,-150.16504177,0.00033698,14]
[332701447,1721454680428,-500.0,0.00033698,14]
[332701448,1721454680440,-2294.03,0.00033698,14]
[332701449,1721454680452,-4051.96,0.00033698,14]
[332701450,1721454680464,-1855.61,0.00033698,14]
[332701451,1721454680476,-563.29517806,0.00033698,14]
[332701452,1721454680488,-500.0,0.00033698,14]
[332701453,1721454680499,-691.44,0.00033698,14]
[332701454,1721454680512,-500.0,0.00033698,14]
[332701455,1721454680524,-626.18,0.00033698,14]
[332701456,1721454680536,-500.0,0.00033698,14]
[332701457,1721454680548,-500.0,0.00033698,14]
[332701458,1721454680560,-3548.1,0.00033698,14]
[332701459,1721454680573,-2137.09,0.00033698,14]
[332701460,1721454680585,-509.47,0.00033698,14]
[332701461,1721454680597,-500.0,0.00033698,14]
[332701462,1721454680609,-2204.46,0.00033698,14]
[332701463,1721454680620,-953.73,0.00033698,14]
[332701464,1721454680632,-1125.08,0.00033698,14]
[332701465,1721454680644,-500.0,0.00033698,14]
[332701466,1721454680656,-1011.8,0.00033698,14]
[332701467,1721454680668,-500.0,0.00033698,14]
[332701468,1721454680679,-908.27,0.00033698,14]
[332701469,1721454680692,-1227.28,0.00033698,14]
[332701470,1721454680703,-8132.78,0.00033698,14]
[332701471,1721454680715,-2035.89,0.00033698,14]
[332701472,1721454680727,-614.64,0.00033698,14]
[332701473,1721454680740,-575.16,0.00033698,14]
[332701474,1721454680752,-1486.5,0.00033698,14]
[332701475,1721454680764,-500.0,0.00033698,14]
[332701476,1721454680775,-500.0,0.00033698,14]
[332701477,1721454680787,-1562.52,0.00033698,14]
[332701478,1721454680799,-2099.47,0.00033698,14]
[332701479,1721454680811,-1138.31,0.00033698,14]
[332701480,1721454680823,-500.0,0.00033698,14]
[332701481,1721454680834,-4357.79,0.00033698,14]
[332701482,1721454680846,-2011.54,0.00033698,14]
[332701483,1721454680859,-2892.84,0.00033698,14]
[332701484,1721454680871,-1589.17,0.00033698,14]
[332701485,1721454680884,-500.0,0.00033698,14]
[332701486,1721454680896,-1172.33,0.00033698,14]
[332701487,1721454680908,-500.0,0.00033698,14]
[332701488,1721454680919,-1375.07,0.00033698,14]
[332701489,1721454680931,-1834.57,0.00033698,14]
[332701490,1721454680943,-13120.15,0.00033698,14]
[332701491,1721454680955,-500.0,0.00033698,14]
[332701492,1721454680967,-4131.25,0.00033698,14]
[332701493,1721454680978,-191.54,0.00033698,14]
[332701494,1721454680991,-1248.89,0.00033698,14]
[332701495,1721454681002,-1789.82,0.00033698,14]
[332701496,1721454681014,-701.08,0.00033698,14]
[332701497,1721454681026,-1061.38,0.00033698,14]
[332701498,1721454681038,-2389.87,0.00033698,14]
[332701499,1721454681050,-2482.06,0.00033698,14]
[332701500,1721454681062,-775.2,0.00033698,14]
[332701501,1721454681074,-816.59,0.00033698,14]
[332701502,1721454681086,-655.03,0.00033698,14]
[332701503,1721454681099,-500.0,0.00033698,14]
[332701504,1721454681111,-10337.24,0.00033698,14]
[332701505,1721454681123,-500.0,0.00033698,14]
[332701506,1721454681134,-500.0,0.00033698,14]
[332701507,1721454681146,-2400.68,0.00033698,14]
[332701508,1721454681158,-2903.43,0.00033698,14]
[332701509,1721454681170,-500.0,0.00033698,14]
[332701510,1721454681182,-500.0,0.00033698,14]
[332701511,1721454681194,-871.73,0.00033698,14]
[332701512,1721454681205,-537.49,0.00033698,14]
[332701513,1721454681217,-218.51972797,0.00033698,14]
[332701514,1721454681228,-3440.18,0.00033698,14]
[332701515,1721454681239,-658.05,0.00033698,14]
[332701516,1721454681251,-800.38,0.00033698,14]
[332701517,1721454681262,-500.0,0.00033698,14]
[332701518,1721454681274,-529.84,0.00033698,14]
[332701519,1721454681286,-789.85,0.00033698,14]
[332701520,1721454681298,-5938.68,0.00033698,14]
[332701521,1721454681309,-848.04,0.00033698,14]
[332701522,1721454681323,-500.0,0.00033698,14]
[332701523,1721454681334,-867.86,0.00033698,14]
[332701524,1721454681346,-735.16,0.00033698,14]
[332701525,1721454681359,-500.0,0.00033698,14]
[332701526,1721454681371,-1292.82,0.00033698,14]
[332701527,1721454681382,-4015.29,0.00033698,14]
[332701528,1721454681394,-500.0,0.00033698,14]
[332701529,1721454681405,-500.0,0.00033698,14]
[332701530,1721454681417,-151.0,0.00033698,7]
[332701531,1721454681429,-5853.88,0.00033698,14]
[332701532,1721454681440,-500.0,0.00033698,14]
[332701533,1721454681451,-531.09,0.00033698,14]
[332701534,1721454681463,-2357.13,0.00033698,14]
[332701535,1721454681474,-669.25,0.00033698,14]
[332701536,1721454681486,-2902.56,0.00033698,14]
[332701537,1721454681497,-500.0,0.00033698,14]
[332701538,1721454681509,-500.0,0.00033698,14]
[332701539,1721454681520,-5173.83,0.00033698,14]
[332701540,1721454681532,-500.0,0.00033698,14]
[332701541,1721454681543,-500.0,0.00033698,14]
[332701542,1721454681555,-527.63,0.00033698,14]
[332701543,1721454681567,-4171.78,0.00033698,14]
[332701544,1721454681579,-500.0,0.00033698,14]
[332701545,1721454681590,-500.0,0.00033698,14]
[332701546,1721454681604,-1007.16,0.00033698,14]